[Event "Elitserien 2019/2020, round 1-3"]
[Site "Uppsala University, Gamla torget, Uppsala, Sweden"]
[Date "2019.10.18"]
[Round "1.1"]
[White "Neiksans, Arturs"]
[Black "Jepson, Christian"]
[Result "1-0"]
[TimeControl "90 minutes for 40 moves + 30 minutes for the rest of the game + 30 seconds per move from move one."]
[WhiteTitle "GM"]
[BlackTitle "IM"]
[WhiteFideId "11601388"]
[BlackFideId "1701185"]
[WhiteElo "2577"]
[BlackElo "2387"]

1. e4 {[%clk 01:30:57]} {[%emt 00:00:02]} d6 {[%clk 01:30:54]} {[%emt
00:00:07]} 2. d4 {[%clk 01:31:20]} {[%emt 00:00:07]} Nf6 {[%clk 01:31:19]}
{[%emt 00:00:04]} 3. Nc3 {[%clk 01:31:30]} {[%emt 00:00:21]} g6 {[%clk
01:31:44]} {[%emt 00:00:04]} 4. Nf3 {[%clk 01:30:58]} {[%emt 00:01:02]} Bg7
{[%clk 01:31:38]} {[%emt 00:00:36]} 5. Be3 {[%clk 01:29:12]} {[%emt 00:02:17]}
c6 {[%clk 01:31:03]} {[%emt 00:01:05]} 6. h3 {[%clk 01:27:07]} {[%emt
00:02:35]} b5 {[%clk 01:25:54]} {[%emt 00:05:39]} 7. e5 {[%clk 01:24:51]}
{[%emt 00:02:45]} Nfd7 {[%clk 01:24:10]} {[%emt 00:02:14]} 8. exd6 {[%clk
01:24:21]} {[%emt 00:01:01]} exd6 {[%clk 01:23:49]} {[%emt 00:00:51]} 9. Bf4
{[%clk 01:16:38]} {[%emt 00:08:13]} O-O {[%clk 01:02:47]} {[%emt 00:21:32]} 10.
Be2 {[%clk 01:03:36]} {[%emt 00:13:31]} Nf6 {[%clk 01:01:28]} {[%emt 00:01:49]}
11. O-O {[%clk 01:02:10]} {[%emt 00:01:57]} b4 {[%clk 00:51:07]} {[%emt
00:10:50]} 12. Na4 {[%clk 01:00:21]} {[%emt 00:02:19]} Nd5 {[%clk 00:49:54]}
{[%emt 00:01:43]} 13. Bh2 {[%clk 01:00:32]} {[%emt 00:00:19]} Bh6 {[%clk
00:48:07]} {[%emt 00:02:18]} 14. a3 {[%clk 00:59:27]} {[%emt 00:01:35]} a5
{[%clk 00:48:05]} {[%emt 00:00:31]} 15. Re1 {[%clk 00:55:57]} {[%emt 00:04:00]}
Na6 {[%clk 00:39:51]} {[%emt 00:08:44]} 16. c4 {[%clk 00:49:49]} {[%emt
00:06:38]} Nf4 {[%clk 00:28:57]} {[%emt 00:11:24]} 17. Bf1 {[%clk 00:45:52]}
{[%emt 00:04:28]} Bb7 {[%clk 00:24:11]} {[%emt 00:05:16]} 18. c5 {[%clk
00:38:54]} {[%emt 00:07:28]} Rb8 {[%clk 00:18:49]} {[%emt 00:05:52]} 19. cxd6
{[%clk 00:31:27]} {[%emt 00:07:57]} Qxd6 {[%clk 00:18:29]} {[%emt 00:00:50]} 20.
Ne5 {[%clk 00:31:46]} {[%emt 00:00:11]} Rbd8 {[%clk 00:11:28]} {[%emt
00:07:31]} 21. Qf3 {[%clk 00:25:20]} {[%emt 00:06:55]} g5 {[%clk 00:10:35]}
{[%emt 00:01:23]} 22. h4 {[%clk 00:15:04]} {[%emt 00:10:46]} f6 {[%clk
00:10:32]} {[%emt 00:00:33]} 23. Bxf4 {[%clk 00:14:57]} {[%emt 00:00:38]} gxf4
{[%clk 00:10:55]} {[%emt 00:00:06]} 24. Bc4+ {[%clk 00:12:50]} {[%emt
00:02:36]} Kh8 {[%clk 00:08:48]} {[%emt 00:02:38]} 25. Nf7+ {[%clk 00:13:13]}
{[%emt 00:00:08]} Rxf7 {[%clk 00:09:12]} {[%emt 00:00:06]} 26. Bxf7 {[%clk
00:13:39]} {[%emt 00:00:03]} Qf8 {[%clk 00:06:56]} {[%emt 00:02:46]} 27. Bb3
{[%clk 00:10:33]} {[%emt 00:03:36]} Qg7 {[%clk 00:06:18]} {[%emt 00:01:09]} 28.
Nc5 {[%clk 00:10:22]} {[%emt 00:00:41]} Bc8 {[%clk 00:04:05]} {[%emt 00:02:43]}
29. Be6 {[%clk 00:07:43]} {[%emt 00:03:08]} bxa3 {[%clk 00:02:44]} {[%emt
00:01:51]} 30. bxa3 {[%clk 00:07:17]} {[%emt 00:00:56]} Nxc5 {[%clk 00:02:35]}
{[%emt 00:00:39]} 31. dxc5 {[%clk 00:07:40]} {[%emt 00:00:08]} Ba6 {[%clk
00:02:55]} {[%emt 00:00:09]} 32. Rad1 {[%clk 00:07:56]} {[%emt 00:00:13]} Re8
{[%clk 00:01:51]} {[%emt 00:01:34]} 33. Bf5 {[%clk 00:07:50]} {[%emt 00:00:37]}
1-0

[Event "Elitserien 2019/2020, round 1-3"]
[Site "Uppsala University, Gamla torget, Uppsala, Sweden"]
[Date "2019.10.18"]
[Round "1.2"]
[White "Johansson, Linus"]
[Black "Hammer, Jon Ludvig"]
[Result "1/2-1/2"]
[TimeControl "90 minutes for 40 moves + 30 minutes for the rest of the game + 30 seconds per move from move one."]
[WhiteTitle "IM"]
[BlackTitle "GM"]
[WhiteFideId "1711113"]
[BlackFideId "1503707"]
[WhiteElo "2467"]
[BlackElo "2635"]

1. Nf3 {[%clk 01:30:57]} {[%emt 00:00:02]} d5 {[%clk 01:26:08]} {[%emt
00:04:53]} 2. c4 {[%clk 01:31:12]} {[%emt 00:00:15]} d4 {[%clk 01:25:42]}
{[%emt 00:00:56]} 3. b4 {[%clk 01:29:57]} {[%emt 00:01:46]} c5 {[%clk
01:26:00]} {[%emt 00:00:11]} 4. e3 {[%clk 01:22:05]} {[%emt 00:08:23]} dxe3
{[%clk 01:16:19]} {[%emt 00:10:11]} 5. fxe3 {[%clk 01:22:25]} {[%emt 00:00:09]}
cxb4 {[%clk 01:16:30]} {[%emt 00:00:19]} 6. d4 {[%clk 01:22:49]} {[%emt
00:00:06]} g6 {[%clk 01:10:04]} {[%emt 00:06:56]} 7. Qa4+ {[%clk 01:16:23]}
{[%emt 00:06:56]} Nc6 {[%clk 01:04:20]} {[%emt 00:06:14]} 8. d5 {[%clk
01:13:54]} {[%emt 00:02:59]} Qa5 {[%clk 01:01:56]} {[%emt 00:02:53]} 9. Qb3
{[%clk 01:14:10]} {[%emt 00:00:16]} Nb8 {[%clk 01:01:57]} {[%emt 00:00:27]} 10.
Bb2 {[%clk 01:08:35]} {[%emt 00:06:06]} Nf6 {[%clk 01:01:51]} {[%emt 00:00:36]}
11. e4 {[%clk 01:08:39]} {[%emt 00:00:26]} Na6 {[%clk 00:56:26]} {[%emt
00:05:56]} 12. Nbd2 {[%clk 01:06:14]} {[%emt 00:02:54]} Nc5 {[%clk 00:49:44]}
{[%emt 00:07:12]} 13. Qe3 {[%clk 01:05:43]} {[%emt 00:01:00]} Na4 {[%clk
00:48:16]} {[%emt 00:01:59]} 14. Bd4 {[%clk 01:04:30]} {[%emt 00:01:43]} Ng4
{[%clk 00:45:59]} {[%emt 00:02:47]} 15. Qb3 {[%clk 01:01:50]} {[%emt 00:03:10]}
e5 {[%clk 00:45:57]} {[%emt 00:00:32]} 16. Nxe5 {[%clk 00:59:12]} {[%emt
00:03:08]} Bc5 {[%clk 00:44:54]} {[%emt 00:01:32]} 17. Bxc5 {[%clk 00:51:00]}
{[%emt 00:08:43]} Nxc5 {[%clk 00:45:11]} {[%emt 00:00:13]} 18. Qg3 {[%clk
00:48:42]} {[%emt 00:02:47]} b3 {[%clk 00:36:41]} {[%emt 00:09:01]} 19. Nxg4
{[%clk 00:45:43]} {[%emt 00:03:28]} Bxg4 {[%clk 00:35:40]} {[%emt 00:01:32]} 20.
Qe5+ {[%clk 00:44:08]} {[%emt 00:02:05]} Kd7 {[%clk 00:34:43]} {[%emt
00:01:27]} 21. axb3 {[%clk 00:44:02]} {[%emt 00:00:36]} Qb4 {[%clk 00:34:09]}
{[%emt 00:01:04]} 22. Qf4 {[%clk 00:30:53]} {[%emt 00:13:39]} Nxe4 {[%clk
00:09:50]} {[%emt 00:24:50]} 23. Qxg4+ {[%clk 00:21:51]} {[%emt 00:09:31]} f5
{[%clk 00:10:19]} 24. Qf4 {[%clk 00:21:15]} {[%emt 00:01:06]} Rhe8 {[%clk
00:07:29]} {[%emt 00:03:21]} 25. O-O-O {[%clk 00:16:53]} {[%emt 00:04:52]} Qc3+
{[%clk 00:05:46]} {[%emt 00:02:13]} 26. Kb1 {[%clk 00:17:16]} {[%emt 00:00:06]}
a5 {[%clk 00:05:42]} {[%emt 00:00:35]} 27. c5 {[%clk 00:15:10]} {[%emt
00:02:36]} Nxd2+ {[%clk 00:00:42]} {[%emt 00:05:31]} 28. Qxd2 {[%clk 00:15:35]}
{[%emt 00:00:05]} Qxb3+ {[%clk 00:01:08]} {[%emt 00:00:03]} 29. Kc1 {[%clk
00:15:57]} {[%emt 00:00:07]} Re4 {[%clk 00:00:34]} {[%emt 00:01:05]} 30. Qb2
{[%clk 00:14:54]} {[%emt 00:01:34]} Qe3+ {[%clk 00:00:58]} {[%emt 00:00:06]} 31.
Rd2 {[%clk 00:10:35]} {[%emt 00:04:49]} Qxc5+ {[%clk 00:01:24]} {[%emt
00:00:03]} 32. Kd1 {[%clk 00:10:58]} {[%emt 00:00:06]} Rb4 {[%clk 00:00:41]}
{[%emt 00:01:13]} 33. Qg7+ {[%clk 00:10:56]} {[%emt 00:00:33]} Qe7 {[%clk
00:01:06]} {[%emt 00:00:06]} 34. Qxe7+ {[%clk 00:10:20]} {[%emt 00:01:05]} Kxe7
{[%clk 00:01:34]} {[%emt 00:00:01]} 35. Bd3 {[%clk 00:10:27]} {[%emt 00:00:23]}
Kd6 {[%clk 00:02:01]} {[%emt 00:00:05]} 36. Re1 {[%clk 00:09:53]} {[%emt
00:01:03]} a4 {[%clk 00:02:26]} {[%emt 00:00:05]} 37. Kc1 {[%clk 00:01:54]}
{[%emt 00:08:29]} a3 {[%clk 00:02:26]} {[%emt 00:00:29]} 38. Bb1 {[%clk
00:01:45]} {[%emt 00:00:40]} Rc8+ {[%clk 00:02:12]} {[%emt 00:00:44]} 39. Rc2
{[%clk 00:02:04]} {[%emt 00:00:10]} Rbc4 {[%clk 00:00:32]} {[%emt 00:02:11]} 40.
Ree2 {[%clk 00:01:16]} {[%emt 00:01:19]} Rxc2+ {[%clk 00:00:45]} {[%emt
00:00:16]} 41. Bxc2 {[%clk 00:00:58]} {[%emt 00:00:47]} b5 {[%clk 00:28:19]}
{[%emt 00:02:57]} 42. Kb1 {[%clk 00:30:35]} {[%emt 00:00:53]} Kxd5 {[%clk
00:28:16]} {[%emt 00:00:33]} 43. Ka2 {[%clk 00:26:47]} {[%emt 00:04:18]} b4
{[%clk 00:26:56]} {[%emt 00:01:50]} 44. Bb3+ {[%clk 00:26:09]} {[%emt
00:01:08]} Kd4 {[%clk 00:27:03]} {[%emt 00:00:23]} 45. Re7 {[%clk 00:24:23]}
{[%emt 00:02:15]} Rh8 {[%clk 00:24:35]} {[%emt 00:02:58]} 46. Rb7 {[%clk
00:19:36]} {[%emt 00:05:18]} Kc5 {[%clk 00:24:18]} {[%emt 00:00:47]} 47. Rc7+
{[%clk 00:19:48]} {[%emt 00:00:18]} Kb6 {[%clk 00:24:32]} {[%emt 00:00:15]} 48.
Rc2 {[%clk 00:18:57]} {[%emt 00:01:22]} Rd8 {[%clk 00:22:39]} {[%emt 00:02:22]}
49. Bc4 {[%clk 00:18:39]} {[%emt 00:00:49]} Ka5 {[%clk 00:20:04]} {[%emt
00:03:05]} 50. Re2 {[%clk 00:14:27]} {[%emt 00:04:42]} Ka4 {[%clk 00:17:35]}
{[%emt 00:02:57]} 51. h3 {[%clk 00:14:04]} {[%emt 00:00:54]} Rd4 {[%clk
00:17:28]} {[%emt 00:00:37]} 52. Bb3+ {[%clk 00:13:47]} {[%emt 00:00:48]} Kb5
{[%clk 00:17:55]} {[%emt 00:00:02]} 53. Re5+ {[%clk 00:12:20]} {[%emt
00:01:58]} Kb6 {[%clk 00:15:11]} {[%emt 00:03:15]} 54. Re6+ {[%clk 00:12:17]}
{[%emt 00:00:32]} Kb5 {[%clk 00:15:26]} {[%emt 00:00:15]} 55. Re5+ {[%clk
00:12:11]} {[%emt 00:00:36]} Kb6 {[%clk 00:14:29]} {[%emt 00:01:27]} 56. Re6+
{[%clk 00:12:17]} {[%emt 00:00:24]} Kb5 {[%clk 00:14:52]} {[%emt 00:00:06]} 57.
Re5+ {[%clk 00:10:03]} {[%emt 00:02:44]} 1/2-1/2

[Event "Elitserien 2019/2020, round 1-3"]
[Site "Uppsala University, Gamla torget, Uppsala, Sweden"]
[Date "2019.10.18"]
[Round "1.3"]
[White "Blomqvist, Erik"]
[Black "Brynell, Stellan"]
[Result "1/2-1/2"]
[TimeControl "90 minutes for 40 moves + 30 minutes for the rest of the game + 30 seconds per move from move one."]
[WhiteTitle "GM"]
[BlackTitle "GM"]
[WhiteFideId "1709437"]
[BlackFideId "1700219"]
[WhiteElo "2519"]
[BlackElo "2408"]

1. e4 {[%clk 01:30:52]} {[%emt 00:00:07]} e6 {[%clk 01:30:47]} {[%emt
00:00:15]} 2. d4 {[%clk 01:31:14]} {[%emt 00:00:07]} d5 {[%clk 01:31:13]}
{[%emt 00:00:04]} 3. e5 {[%clk 01:31:37]} {[%emt 00:00:07]} c5 {[%clk
01:31:23]} {[%emt 00:00:19]} 4. c3 {[%clk 01:31:59]} {[%emt 00:00:09]} Nc6
{[%clk 01:31:45]} {[%emt 00:00:08]} 5. Nf3 {[%clk 01:32:23]} {[%emt 00:00:06]}
Qb6 {[%clk 01:29:52]} {[%emt 00:02:23]} 6. a3 {[%clk 01:32:13]} {[%emt
00:00:40]} c4 {[%clk 01:25:42]} {[%emt 00:04:40]} 7. Nbd2 {[%clk 01:31:38]}
{[%emt 00:01:05]} f6 {[%clk 01:25:47]} {[%emt 00:00:25]} 8. Be2 {[%clk
01:27:20]} {[%emt 00:04:49]} fxe5 {[%clk 01:25:10]} {[%emt 00:01:07]} 9. Nxe5
{[%clk 01:26:14]} {[%emt 00:01:36]} Nxe5 {[%clk 01:24:13]} {[%emt 00:01:26]} 10.
dxe5 {[%clk 01:26:37]} {[%emt 00:00:06]} Bc5 {[%clk 01:24:29]} {[%emt
00:00:14]} 11. O-O {[%clk 01:26:21]} {[%emt 00:00:46]} Ne7 {[%clk 01:24:37]}
{[%emt 00:00:23]} 12. b4 {[%clk 01:25:01]} {[%emt 00:01:49]} cxb3 {[%clk
01:24:59]} {[%emt 00:00:08]} 13. Nxb3 {[%clk 01:24:36]} {[%emt 00:00:56]} O-O
{[%clk 01:24:53]} {[%emt 00:00:36]} 14. Nxc5 {[%clk 00:48:17]} {[%emt
00:36:49]} Qxc5 {[%clk 01:25:11]} {[%emt 00:00:12]} 15. c4 {[%clk 00:48:40]}
{[%emt 00:00:08]} dxc4 {[%clk 00:50:48]} {[%emt 00:34:52]} 16. a4 {[%clk
00:45:10]} {[%emt 00:04:00]} Qxe5 {[%clk 00:41:42]} {[%emt 00:09:37]} 17. Ba3
{[%clk 00:44:54]} {[%emt 00:00:45]} Qf6 {[%clk 00:40:26]} {[%emt 00:01:46]} 18.
Bxc4 {[%clk 00:43:47]} {[%emt 00:01:37]} Re8 {[%clk 00:34:34]} {[%emt
00:06:22]} 19. Re1 {[%clk 00:42:30]} {[%emt 00:01:47]} Nc6 {[%clk 00:27:03]}
{[%emt 00:08:00]} 20. Qh5 {[%clk 00:28:31]} {[%emt 00:14:29]} Qf7 {[%clk
00:23:53]} {[%emt 00:03:41]} 21. Qh4 {[%clk 00:25:55]} {[%emt 00:03:06]} Qf6
{[%clk 00:22:31]} {[%emt 00:01:52]} 22. Qe4 {[%clk 00:25:06]} {[%emt 00:01:19]}
Bd7 {[%clk 00:18:44]} {[%emt 00:04:17]} 23. Rad1 {[%clk 00:22:53]} {[%emt
00:02:42]} Rad8 {[%clk 00:18:58]} {[%emt 00:00:16]} 24. Rd3 {[%clk 00:21:24]}
{[%emt 00:01:59]} Bc8 {[%clk 00:13:26]} {[%emt 00:06:02]} 25. Bd6 {[%clk
00:19:12]} {[%emt 00:02:42]} Ne7 {[%clk 00:12:17]} {[%emt 00:01:40]} 26. Red1
{[%clk 00:14:04]} {[%emt 00:05:37]} Qf5 {[%clk 00:09:21]} {[%emt 00:03:28]} 27.
Qh4 {[%clk 00:11:58]} {[%emt 00:02:35]} Ng6 {[%clk 00:07:35]} {[%emt 00:02:16]}
28. Qg3 {[%clk 00:12:22]} {[%emt 00:00:06]} a6 {[%clk 00:06:03]} {[%emt
00:02:02]} 29. Bc7 {[%clk 00:07:04]} {[%emt 00:05:48]} Rxd3 {[%clk 00:05:56]}
{[%emt 00:00:37]} 30. Bxd3 {[%clk 00:07:32]} {[%emt 00:00:02]} Qh5 {[%clk
00:05:25]} {[%emt 00:01:01]} 31. Re1 {[%clk 00:06:44]} {[%emt 00:01:17]} b5
{[%clk 00:04:50]} {[%emt 00:01:06]} 32. axb5 {[%clk 00:05:46]} {[%emt
00:01:28]} axb5 {[%clk 00:05:19]} {[%emt 00:00:02]} 33. Rb1 {[%clk 00:04:11]}
{[%emt 00:02:03]} Bd7 {[%clk 00:04:52]} {[%emt 00:00:57]} 1/2-1/2

[Event "Elitserien 2019/2020, round 1-3"]
[Site "Uppsala University, Gamla torget, Uppsala, Sweden"]
[Date "2019.10.18"]
[Round "1.4"]
[White "Lindgren, Philip"]
[Black "Wiedenkeller, Michael"]
[Result "0-1"]
[TimeControl "90 minutes for 40 moves + 30 minutes for the rest of the game + 30 seconds per move from move one."]
[WhiteTitle "IM"]
[BlackTitle "IM"]
[WhiteFideId "1713230"]
[BlackFideId "1700146"]
[WhiteElo "2348"]
[BlackElo "2459"]

1. d4 {[%clk 01:30:52]} {[%emt 00:00:07]} d5 {[%clk 01:30:22]} {[%emt
00:00:38]} 2. c4 {[%clk 01:31:05]} {[%emt 00:00:18]} dxc4 {[%clk 01:30:32]}
{[%emt 00:00:20]} 3. e4 {[%clk 01:30:56]} {[%emt 00:00:39]} Nf6 {[%clk
01:30:46]} {[%emt 00:00:15]} 4. e5 {[%clk 01:30:12]} {[%emt 00:01:15]} Nd5
{[%clk 01:31:07]} {[%emt 00:00:08]} 5. Bxc4 {[%clk 01:30:21]} {[%emt 00:00:21]}
Bf5 {[%clk 01:31:03]} {[%emt 00:00:34]} 6. Ne2 {[%clk 01:23:41]} {[%emt
00:07:10]} e6 {[%clk 01:23:52]} {[%emt 00:07:42]} 7. O-O {[%clk 01:19:36]}
{[%emt 00:04:35]} Nb6 {[%clk 01:22:20]} {[%emt 00:02:02]} 8. Bb3 {[%clk
01:18:20]} {[%emt 00:01:46]} Nc6 {[%clk 01:22:15]} {[%emt 00:00:34]} 9. a3
{[%clk 01:11:48]} {[%emt 00:07:03]} Qd7 {[%clk 01:19:38]} {[%emt 00:03:07]} 10.
Nbc3 {[%clk 01:10:53]} {[%emt 00:01:25]} O-O-O {[%clk 01:18:27]} {[%emt
00:01:39]} 11. Be3 {[%clk 01:09:24]} {[%emt 00:02:01]} Kb8 {[%clk 01:17:06]}
{[%emt 00:01:50]} 12. Qc1 {[%clk 01:01:48]} {[%emt 00:08:06]} f6 {[%clk
01:09:24]} {[%emt 00:08:12]} 13. Rd1 {[%clk 00:54:10]} {[%emt 00:08:08]} Qe8
{[%clk 00:59:52]} {[%emt 00:10:03]} 14. exf6 {[%clk 00:42:46]} {[%emt
00:11:54]} gxf6 {[%clk 01:00:09]} {[%emt 00:00:11]} 15. d5 {[%clk 00:40:23]}
{[%emt 00:02:55]} exd5 {[%clk 00:45:30]} {[%emt 00:15:09]} 16. Nxd5 {[%clk
00:39:34]} {[%emt 00:01:18]} Bd6 {[%clk 00:45:03]} {[%emt 00:00:57]} 17. Ng3
{[%clk 00:35:59]} {[%emt 00:04:05]} Bxg3 {[%clk 00:39:41]} {[%emt 00:05:52]} 18.
hxg3 {[%clk 00:35:29]} {[%emt 00:01:00]} Nxd5 {[%clk 00:34:47]} {[%emt
00:05:24]} 19. Rxd5 {[%clk 00:30:19]} {[%emt 00:05:40]} Rxd5 {[%clk 00:31:44]}
{[%emt 00:03:33]} 20. Bxd5 {[%clk 00:30:43]} {[%emt 00:00:06]} Be4 {[%clk
00:30:58]} {[%emt 00:01:17]} 21. Bb3 {[%clk 00:26:27]} {[%emt 00:04:45]} Qg6
{[%clk 00:24:05]} {[%emt 00:07:23]} 22. Qe1 {[%clk 00:18:40]} {[%emt 00:08:17]}
Ne5 {[%clk 00:19:25]} {[%emt 00:05:10]} 23. Qc3 {[%clk 00:11:14]} {[%emt
00:07:57]} Ng4 {[%clk 00:11:13]} {[%emt 00:08:42]} 24. Rc1 {[%clk 00:10:19]}
{[%emt 00:01:25]} Bc6 {[%clk 00:07:48]} {[%emt 00:03:54]} 25. Bd5 {[%clk
00:06:37]} {[%emt 00:04:13]} Ne5 {[%clk 00:07:06]} {[%emt 00:01:12]} 26. Qd4
{[%clk 00:03:05]} {[%emt 00:04:02]} Bxd5 {[%clk 00:05:06]} {[%emt 00:02:30]} 27.
Qxd5 {[%clk 00:01:40]} {[%emt 00:01:55]} Rc8 {[%clk 00:02:11]} {[%emt
00:03:25]} 28. Qd4 {[%clk 00:00:51]} {[%emt 00:01:19]} b6 {[%clk 00:02:23]}
{[%emt 00:00:18]} 29. Bf4 {[%clk 00:00:44]} {[%emt 00:00:37]} Qh5 {[%clk
00:02:02]} {[%emt 00:00:51]} 30. a4 {[%clk 00:00:34]} {[%emt 00:00:40]} Qe8
{[%clk 00:01:29]} {[%emt 00:01:03]} 31. a5 {[%clk 00:00:43]} {[%emt 00:00:21]}
Qb5 {[%clk 00:01:36]} {[%emt 00:00:22]} 32. axb6 {[%clk 00:00:44]} {[%emt
00:00:29]} axb6 {[%clk 00:02:01]} {[%emt 00:00:06]} 33. Qe4 {[%clk 00:00:31]}
{[%emt 00:00:42]} Qxb2 {[%clk 00:01:46]} {[%emt 00:00:46]} 34. Rb1 {[%clk
00:00:38]} {[%emt 00:00:23]} Qa2 {[%clk 00:01:14]} {[%emt 00:00:59]} 35. Qxh7
{[%clk 00:00:35]} {[%emt 00:00:35]} Qd5 {[%clk 00:01:19]} {[%emt 00:00:25]} 36.
Qg7 {[%clk 00:00:32]} {[%emt 00:00:34]} Qe6 {[%clk 00:00:56]} {[%emt 00:00:52]}
37. Be3 {[%clk 00:00:34]} {[%emt 00:00:28]} Ng4 {[%clk 00:00:40]} {[%emt
00:00:46]} 38. Bf4 {[%clk 00:00:32]} {[%emt 00:00:32]} Ne5 {[%clk 00:00:55]}
{[%emt 00:00:15]} 39. Qh7 {[%clk 00:00:36]} {[%emt 00:00:26]} Rd8 {[%clk
00:00:55]} {[%emt 00:00:30]} 40. Qe4 {[%clk 00:00:34]} {[%emt 00:00:32]} Qd5
{[%clk 00:00:38]} {[%emt 00:00:48]} 41. Qa4 {[%clk 00:28:39]} {[%emt 00:02:24]}
Qd7 {[%clk 00:27:20]} {[%emt 00:03:48]} 42. Qa2 {[%clk 00:23:23]} {[%emt
00:05:46]} Qd5 {[%clk 00:25:30]} {[%emt 00:02:20]} 43. Qa4 {[%clk 00:23:29]}
{[%emt 00:00:24]} Qa8 {[%clk 00:23:54]} {[%emt 00:02:04]} 44. Qb5 {[%clk
00:21:13]} {[%emt 00:02:48]} Qe4 {[%clk 00:19:35]} {[%emt 00:04:47]} 45. Ra1
{[%clk 00:16:40]} {[%emt 00:05:05]} Qc2 {[%clk 00:18:50]} {[%emt 00:01:16]} 46.
Qf1 {[%clk 00:08:05]} {[%emt 00:09:04]} Nd3 {[%clk 00:17:55]} {[%emt 00:01:25]}
47. Rd1 {[%clk 00:07:32]} {[%emt 00:01:03]} Rd5 {[%clk 00:16:19]} {[%emt
00:02:05]} 48. Rd2 {[%clk 00:06:49]} {[%emt 00:01:14]} Qc4 {[%clk 00:15:48]}
{[%emt 00:01:01]} 49. Be3 {[%clk 00:06:44]} {[%emt 00:00:35]} Kb7 {[%clk
00:14:30]} {[%emt 00:01:48]} 50. g4 {[%clk 00:05:25]} {[%emt 00:01:48]} Qb5
{[%clk 00:11:07]} {[%emt 00:03:54]} 51. Qa1 {[%clk 00:03:18]} {[%emt 00:02:37]}
Ne5 {[%clk 00:08:02]} {[%emt 00:03:36]} 52. Ra2 {[%clk 00:00:59]} {[%emt
00:02:48]} Nc6 {[%clk 00:03:48]} {[%emt 00:04:44]} 53. Rc2 {[%clk 00:01:00]}
{[%emt 00:00:29]} Ne5 {[%clk 00:02:44]} {[%emt 00:01:34]} 54. Ra2 {[%clk
00:01:13]} {[%emt 00:00:17]} Nxg4 {[%clk 00:02:12]} {[%emt 00:01:02]} 55. Ra7+
{[%clk 00:01:38]} {[%emt 00:00:05]} Kc8 {[%clk 00:02:31]} {[%emt 00:00:12]} 56.
Ra8+ {[%clk 00:02:03]} {[%emt 00:00:04]} Kd7 {[%clk 00:02:42]} {[%emt
00:00:19]} 57. Rg8 {[%clk 00:00:38]} {[%emt 00:01:56]} Qb3 {[%clk 00:01:44]}
{[%emt 00:01:28]} 58. Rg7+ {[%clk 00:00:35]} {[%emt 00:00:32]} Ke6 {[%clk
00:02:00]} {[%emt 00:00:15]} 59. Bd4 {[%clk 00:00:31]} {[%emt 00:00:34]} Rxd4
{[%clk 00:01:42]} {[%emt 00:00:48]} 60. Qe1+ {[%clk 00:00:32]} {[%emt
00:00:28]} Ne5 {[%clk 00:01:52]} {[%emt 00:00:21]} 0-1